fUSD/lending_fUSD_20240508
["ID","MTS","AMOUNT","RATE_DAILY","PERIOD"]
[326662473,1715207466069,-700.0,0.0002847,2]
[326662474,1715207466079,-150.0,0.00028471,2]
[326662475,1715207466088,-155.0,0.00028491,2]
[326662476,1715207466098,-731.4392052,0.00028492,15]
[326662477,1715207466108,-205.09669917,0.00028492,2]
[326662478,1715207466117,-2435.17025682,0.00028492,2]
[326662479,1715207466127,-500.0,0.00028493,5]
[326662480,1715207466136,-500.0,0.00028493,5]
[326662481,1715207466146,-937.08,0.00028493,5]
[326662482,1715207466156,-500.0,0.00028493,5]
[326662483,1715207466166,-500.0,0.00028493,5]
[326662484,1715207466176,-351.51,0.00028493,5]
[326662485,1715207466186,-1480.17,0.00028493,5]
[326662486,1715207466195,-500.0,0.00028493,5]
[326662487,1715207466205,-500.0,0.00028493,5]
[326662488,1715207466215,-1486.86,0.00028493,5]
[326662489,1715207466224,-500.0,0.00028493,5]
[326662490,1715207466234,-500.0,0.00028493,5]
[326662491,1715207466243,-500.0,0.00028493,5]
[326662492,1715207466254,-500.0,0.00028493,5]
[326662493,1715207466265,-190.4,0.00028493,5]
[326662494,1715207466275,-500.0,0.00028493,5]
[326662495,1715207466285,-500.0,0.00028493,5]
[326662496,1715207466295,-500.0,0.00028493,5]
[326662497,1715207466305,-536.99229065,0.00028493,5]
[326662498,1715207466315,-500.0,0.00028493,5]
[326662499,1715207466325,-570.43,0.00028493,5]
[326662500,1715207466335,-598.33,0.00028493,5]
[326662501,1715207466345,-500.0,0.00028493,5]
[326662502,1715207466355,-500.0,0.00028493,5]
[326662503,1715207466365,-975.74743635,0.00028493,2]
[326662504,1715207466375,-417.41,0.00028493,5]
[326662505,1715207466385,-500.0,0.00028493,5]
[326662506,1715207466395,-592.93,0.00028493,5]
[326662507,1715207466405,-500.0,0.00028493,5]
[326662508,1715207466416,-500.0,0.00028493,5]
[326662509,1715207466426,-500.0,0.00028493,5]
[326662510,1715207466436,-500.0,0.00028493,5]
[326662511,1715207466446,-500.0,0.00028493,5]
[326662512,1715207466456,-392.82,0.00028493,5]
[326662513,1715207466466,-500.0,0.00028493,5]
[326662514,1715207466476,-331.39,0.00028493,5]
[326662515,1715207466486,-500.0,0.00028493,5]
[326662516,1715207466495,-500.0,0.00028493,5]
[326662517,1715207466505,-500.0,0.00028493,5]
[326662518,1715207466516,-2597.35,0.00028493,5]
[326662519,1715207466668,-296.18,0.00028493,5]
[326662520,1715207466677,-500.0,0.00028493,5]
[326662521,1715207466687,-316.99,0.00028493,5]
[326662522,1715207466696,-581.94,0.00028493,5]
[326662523,1715207466706,-500.0,0.00028493,2]
[326662524,1715207466715,-500.0,0.00028493,5]
[326662525,1715207466725,-500.0,0.00028493,2]
[326662526,1715207466734,-500.0,0.00028493,5]
[326662527,1715207466744,-1371.59,0.00028493,5]
[326662528,1715207466753,-572.65,0.00028493,5]
[326662529,1715207466763,-415.7,0.00028493,5]
[326662530,1715207466773,-500.0,0.00028493,5]
[326662531,1715207466783,-243.57,0.00028493,5]
[326662532,1715207466795,-563.55,0.00028493,5]
[326662533,1715207466805,-500.0,0.00028493,5]
[326662534,1715207466814,-989.31,0.00028493,5]
[326662535,1715207466823,-500.0,0.00028493,5]
[326662536,1715207466833,-362.34,0.00028493,5]
[326662537,1715207466843,-500.0,0.00028493,5]
[326662538,1715207466853,-500.0,0.00028493,5]
[326662539,1715207466863,-500.0,0.00028493,5]
[326662540,1715207466872,-1510.2,0.00028493,5]
[326662541,1715207466883,-168.54,0.00028493,5]
[326662542,1715207466892,-500.0,0.00028493,5]
[326662543,1715207466902,-172.4,0.00028493,5]
[326662544,1715207466911,-500.0,0.00028493,5]
[326662545,1715207466920,-500.0,0.00028493,5]
[326662546,1715207466929,-404.04,0.00028493,5]
[326662547,1715207466938,-500.0,0.00028493,5]
[326662548,1715207466948,-2799.55,0.00028493,5]
[326662549,1715207466958,-500.0,0.00028493,5]
[326662550,1715207466967,-594.55,0.00028493,5]
[326662551,1715207466977,-1388.07,0.00028493,5]
[326662552,1715207466986,-500.0,0.00028493,5]
[326662553,1715207466995,-780.43,0.00028493,5]
[326662554,1715207467005,-260.28,0.00028493,5]
[326662555,1715207467016,-500.0,0.00028493,5]
[326662556,1715207467025,-500.0,0.00028493,2]
[326662557,1715207467036,-2203.33,0.00028493,5]
[326662558,1715207467046,-500.0,0.00028493,5]
[326662559,1715207467055,-151.0,0.00028493,7]
[326662560,1715207467066,-1213.06,0.00028493,5]
[326662561,1715207467075,-201.358263,0.00028493,7]
[326662562,1715207467084,-500.0,0.00028493,5]
[326662563,1715207467094,-151.0,0.00028493,7]
[326662564,1715207467104,-201.358263,0.00028493,7]
[326662565,1715207467114,-500.0,0.00028493,5]
[326662566,1715207467123,-500.0,0.00028493,5]
[326662567,1715207467132,-295.966388,0.00028493,7]
[326662568,1715207467141,-416.39,0.00028493,5]
[326662569,1715207467151,-1130.29,0.00028493,5]
[326662570,1715207467160,-500.0,0.00028493,5]
[326662571,1715207467169,-2068.76,0.00028493,5]
[326662572,1715207467179,-500.0,0.00028493,5]
[326662573,1715207467188,-500.0,0.00028493,5]
[326662574,1715207467197,-295.966388,0.00028493,7]
[326662575,1715207467206,-500.0,0.00028493,5]
[326662576,1715207467216,-309.62,0.00028493,5]
[326662577,1715207467225,-500.0,0.00028493,5]
[326662578,1715207467235,-500.0,0.00028493,5]
[326662579,1715207467244,-500.0,0.00028493,5]
[326662580,1715207467253,-500.0,0.00028493,5]
[326662581,1715207467262,-500.0,0.00028493,5]
[326662582,1715207467272,-1025.07,0.00028493,5]
[326662583,1715207467282,-1224.05,0.00028493,5]
[326662584,1715207467291,-500.0,0.00028493,5]
[326662585,1715207467300,-1296.14,0.00028493,5]
[326662586,1715207467310,-500.0,0.00028493,5]
[326662587,1715207467319,-500.0,0.00028493,5]
[326662588,1715207467328,-500.0,0.00028493,5]
[326662589,1715207467338,-500.0,0.00028493,5]
[326662590,1715207467347,-754.94,0.00028493,5]
[326662591,1715207467357,-500.0,0.00028493,5]
[326662592,1715207467368,-1131.17,0.00028493,5]
[326662593,1715207467377,-500.0,0.00028493,5]
[326662594,1715207467386,-1669.12,0.00028493,5]
[326662595,1715207467395,-502.16,0.00028493,5]
[326662596,1715207467404,-500.0,0.00028493,5]
[326662597,1715207467414,-500.0,0.00028493,2]
[326662598,1715207467423,-500.0,0.00028493,5]
[326662599,1715207467432,-444.79,0.00028493,5]
[326662600,1715207467441,-500.0,0.00028493,5]
[326662601,1715207467451,-1528.3,0.00028493,5]
[326662602,1715207467460,-500.0,0.00028493,2]
[326662603,1715207467469,-357.06,0.00028493,5]
[326662604,1715207467479,-500.0,0.00028493,5]
[326662605,1715207467488,-500.0,0.00028493,5]
[326662606,1715207467498,-500.0,0.00028493,5]
[326662607,1715207467507,-500.0,0.00028493,5]
[326662608,1715207467516,-350.74,0.00028493,5]
[326662609,1715207467526,-382.73,0.00028493,5]
[326662610,1715207467535,-617.72,0.00028493,5]
[326662611,1715207467544,-417.8,0.00028493,5]
[326662612,1715207467553,-500.0,0.00028493,5]
[326662613,1715207467562,-2135.84,0.00028493,5]
[326662614,1715207467572,-1348.39,0.00028493,5]
[326662615,1715207467581,-561.17,0.00028493,5]
[326662616,1715207467591,-500.0,0.00028493,5]
[326662617,1715207467600,-548.28,0.00028493,5]
[326662618,1715207467612,-500.0,0.00028493,5]
[326662619,1715207467621,-500.0,0.00028493,5]
[326662620,1715207467630,-500.0,0.00028493,5]
[326662621,1715207467640,-585.6653583,0.00028493,5]
[326662622,1715207467649,-454.94,0.00028493,5]
[326662623,1715207467658,-2922.46,0.00028493,5]
[326662624,1715207467667,-500.0,0.00028493,5]
[326662625,1715207467677,-369.87,0.00028493,5]
[326662626,1715207467686,-500.0,0.00028493,5]
[326662627,1715207467695,-500.0,0.00028493,5]
[326662628,1715207467704,-357.33427269,0.00028493,5]
[326662629,1715207467713,-500.0,0.00028493,5]
[326662630,1715207467727,-286.91,0.00028493,5]
[326662631,1715207467736,-500.0,0.00028493,5]
[326662632,1715207467746,-500.0,0.00028493,5]
[326662633,1715207467755,-500.0,0.00028493,5]
[326662634,1715207467764,-500.0,0.00028493,5]
[326662635,1715207467773,-500.0,0.00028493,5]
[326662636,1715207467783,-1359.38,0.00028493,5]
[326662637,1715207467794,-451.22,0.00028493,5]
[326662638,1715207467804,-1504.27,0.00028493,5]
[326662639,1715207467814,-500.0,0.00028493,5]
[326662640,1715207467823,-760.09,0.00028493,5]
[326662641,1715207467834,-500.0,0.00028493,5]
[326662642,1715207467843,-500.0,0.00028493,5]
[326662643,1715207467853,-198.665026,0.00028493,7]
[326662644,1715207467865,-161.10532142,0.00028493,5]
[326662645,1715207467875,-254.41,0.00028493,5]
[326662646,1715207467885,-313.35,0.00028493,5]
[326662647,1715207467894,-500.0,0.00028493,5]
[326662648,1715207467904,-623.82,0.00028493,5]
[326662649,1715207467913,-500.0,0.00028493,5]
[326662650,1715207467923,-500.0,0.00028493,5]
[326662651,1715207467932,-620.98,0.00028493,5]
[326662652,1715207467942,-500.0,0.00028493,5]
[326662653,1715207467951,-889.65,0.00028493,5]
[326662654,1715207467961,-500.0,0.00028493,5]
[326662655,1715207467971,-500.0,0.00028493,5]
[326662656,1715207467981,-500.0,0.00028493,5]
[326662657,1715207467991,-500.0,0.00028493,5]
[326662658,1715207468000,-151.0,0.00028493,7]
[326662659,1715207468009,-151.0,0.00028493,7]
[326662660,1715207468019,-500.0,0.00028493,5]
[326662661,1715207468029,-500.0,0.00028493,5]
[326662662,1715207468038,-500.0,0.00028493,5]
[326662663,1715207468047,-538.79,0.00028493,5]
[326662664,1715207468058,-500.0,0.00028493,5]
[326662665,1715207468067,-500.0,0.00028493,5]
[326662666,1715207468077,-500.0,0.00028493,5]
[326662667,1715207468086,-500.0,0.00028493,5]
[326662668,1715207468095,-473.3,0.00028493,5]
[326662669,1715207468104,-500.0,0.00028493,5]
[326662670,1715207468116,-1237.79,0.00028493,5]
[326662671,1715207468124,-500.0,0.00028493,5]
[326662672,1715207468133,-500.0,0.00028493,5]
[326662673,1715207468143,-636.21,0.00028493,5]
[326662674,1715207468152,-500.0,0.00028493,5]
[326662675,1715207468162,-500.0,0.00028493,5]
[326662676,1715207468171,-898.36,0.00028493,5]
[326662677,1715207468180,-500.0,0.00028493,5]
[326662678,1715207468189,-1627.54,0.00028493,5]
[326662679,1715207468199,-921.77,0.00028493,5]
[326662680,1715207468208,-500.0,0.00028493,5]
[326662681,1715207468218,-1093.28,0.00028493,5]
[326662682,1715207468228,-500.0,0.00028493,5]
[326662683,1715207468238,-667.53,0.00028493,5]
[326662684,1715207468247,-579.91,0.00028493,5]
[326662685,1715207468257,-500.0,0.00028493,5]
[326662686,1715207468267,-500.0,0.00028493,5]
[326662687,1715207468276,-500.0,0.00028493,5]
[326662688,1715207468285,-500.0,0.00028493,5]
[326662689,1715207468294,-1936.02,0.00028493,5]
[326662690,1715207468304,-4643.91,0.00028493,5]
[326662691,1715207468314,-500.0,0.00028493,5]
[326662692,1715207468324,-1049.94,0.00028493,5]
[326662693,1715207468334,-1198.78,0.00028493,5]
[326662694,1715207468343,-500.0,0.00028493,5]
[326662695,1715207468353,-552.15,0.00028493,5]
[326662696,1715207468368,-847.69,0.00028493,5]
[326662697,1715207468378,-3011.44,0.00028493,5]
[326662698,1715207468389,-740.77,0.00028493,5]
[326662699,1715207468399,-500.0,0.00028493,5]
[326662700,1715207468408,-681.96,0.00028493,5]
[326662701,1715207468418,-645.64,0.00028493,5]
[326662702,1715207468428,-503.89,0.00028493,5]
[326662703,1715207468438,-587.9,0.00028493,5]
[326662704,1715207468447,-500.0,0.00028493,5]
[326662705,1715207468457,-500.0,0.00028493,5]
[326662706,1715207468466,-500.0,0.00028493,5]
[326662707,1715207468474,-500.0,0.00028493,5]
[326662708,1715207468483,-500.0,0.00028493,5]
[326662709,1715207468492,-2056.06,0.00028493,5]
[326662710,1715207468502,-964.77,0.00028493,5]
[326662711,1715207468511,-500.0,0.00028493,5]
[326662712,1715207468521,-150.0,0.00028493,5]
[326662713,1715207468531,-500.0,0.00028493,5]
[326662714,1715207468540,-500.0,0.00028493,5]
[326662715,1715207468549,-1733.85,0.00028493,5]
[326662716,1715207468559,-500.0,0.00028493,5]
[326662717,1715207468569,-500.0,0.00028493,5]
[326662718,1715207468578,-598.13,0.00028493,5]
[326662719,1715207468588,-191.23,0.00028493,5]
[326662720,1715207468597,-599.57,0.00028493,5]
[326662721,1715207468607,-2316.94,0.00028493,5]
[326662722,1715207468620,-500.0,0.00028493,5]
[326662723,1715207468629,-500.0,0.00028493,5]
[326662724,1715207468638,-655.25,0.00028493,5]
[326662725,1715207468647,-2843.32,0.00028493,5]
[326662726,1715207468656,-500.0,0.00028493,5]
[326662727,1715207468665,-500.0,0.00028493,5]
[326662728,1715207468674,-500.0,0.00028493,5]
[326662729,1715207468684,-500.0,0.00028493,5]
[326662730,1715207468693,-500.0,0.00028493,5]
[326662731,1715207468703,-1914.75,0.00028493,5]
[326662732,1715207468712,-500.0,0.00028493,5]
[326662733,1715207468722,-557.82,0.00028493,5]
[326662734,1715207468732,-617.58,0.00028493,5]
[326662735,1715207468743,-500.0,0.00028493,5]
[326662736,1715207468752,-500.0,0.00028493,5]
[326662737,1715207468761,-500.0,0.00028493,5]
[326662738,1715207468771,-500.0,0.00028493,5]
[326662739,1715207468780,-2179.57,0.00028493,5]
[326662740,1715207468789,-616.62,0.00028493,5]
[326662741,1715207468804,-500.0,0.00028493,5]
[326662742,1715207468814,-595.73,0.00028493,5]
[326662743,1715207468823,-500.0,0.00028493,5]
[326662744,1715207468832,-500.0,0.00028493,5]
[326662745,1715207468843,-420.26,0.00028493,5]
[326662746,1715207468852,-561.52,0.00028493,5]
[326662747,1715207468864,-912.72,0.00028493,5]
[326662748,1715207468875,-500.0,0.00028493,5]
[326662749,1715207468884,-7889.76,0.00028493,5]
[326662750,1715207468894,-500.0,0.00028493,5]
[326662751,1715207468903,-851.67,0.00028493,5]
[326662752,1715207468913,-500.0,0.00028493,5]
[326662753,1715207468922,-500.0,0.00028493,5]
[326662754,1715207468931,-521.93,0.00028493,5]
[326662755,1715207468941,-376.42976943,0.00028493,5]
[326662756,1715207468950,-536.22,0.00028493,5]
[326662757,1715207468960,-500.0,0.00028493,5]
[326662758,1715207468970,-679.62,0.00028493,5]
[326662759,1715207468979,-500.0,0.00028493,5]
[326662760,1715207468988,-1013.97,0.00028493,5]
[326662761,1715207469000,-517.74,0.00028493,5]
[326662762,1715207469013,-549.76,0.00028493,5]
[326662763,1715207469024,-1447.25,0.00028493,5]
[326662764,1715207469035,-500.0,0.00028493,5]
[326662765,1715207469044,-1134.94,0.00028493,5]
[326662766,1715207469054,-244.81952756,0.00028493,5]
[326662767,1715207469065,-500.0,0.00028493,5]
[326662768,1715207469075,-500.0,0.00028493,5]
[326662769,1715207469084,-500.0,0.00028493,5]
[326662770,1715207469094,-556.2,0.00028493,5]
[326662771,1715207469104,-500.0,0.00028493,5]
[326662772,1715207469116,-500.0,0.00028493,5]
[326662773,1715207469126,-500.0,0.00028493,5]
[326662774,1715207469136,-1454.68,0.00028493,5]
[326662775,1715207469147,-1851.13,0.00028493,5]
[326662776,1715207469156,-500.0,0.00028493,5]
[326662777,1715207469167,-1121.41,0.00028493,5]
[326662778,1715207469178,-500.0,0.00028493,5]
[326662779,1715207469188,-500.0,0.00028493,5]
[326662780,1715207469198,-769.76,0.00028493,5]
[326662781,1715207469209,-500.0,0.00028493,5]
[326662782,1715207469219,-500.0,0.00028493,5]
[326662783,1715207469228,-8565.34,0.00028493,5]
[326662784,1715207469240,-500.0,0.00028493,5]
[326662785,1715207469250,-1657.56,0.00028493,5]
[326662786,1715207469259,-635.83,0.00028493,5]
[326662787,1715207469269,-690.76,0.00028493,5]
[326662788,1715207469278,-547.86,0.00028493,5]
[326662789,1715207469288,-500.0,0.00028493,5]
[326662790,1715207469297,-1236.85,0.00028493,5]
[326662791,1715207469307,-500.0,0.00028493,5]
[326662792,1715207469317,-4438.24,0.00028493,5]
[326662793,1715207469326,-500.0,0.00028493,5]
[326662794,1715207469337,-500.0,0.00028493,5]
[326662795,1715207469347,-12756.53263636,0.00028493,5]
[326662796,1715207469596,-1693.39736364,0.00028493,5]
[326662797,1715207469606,-500.0,0.00028493,5]
[326662798,1715207469620,-500.0,0.00028493,5]
[326662799,1715207469629,-500.0,0.00028493,5]
[326662800,1715207469640,-500.0,0.00028493,5]
[326662801,1715207469649,-851.79,0.00028493,5]
[326662802,1715207469660,-500.0,0.00028493,5]
[326662803,1715207469669,-500.0,0.00028493,5]
[326662804,1715207469678,-500.0,0.00028493,5]
[326662805,1715207469688,-500.0,0.00028493,5]
[326662806,1715207469861,-500.0,0.00028493,5]
[326662807,1715207469872,-748.55,0.00028493,5]
[326662808,1715207469885,-749.56,0.00028493,5]
[326662809,1715207469896,-500.0,0.00028493,2]
[326662810,1715207469906,-500.0,0.00028493,5]
[326662811,1715207469915,-437.46,0.00028493,5]
[326662812,1715207469926,-500.0,0.00028493,5]
[326662813,1715207469936,-663.18,0.00028493,5]
[326662814,1715207469946,-861.09,0.00028493,5]
[326662815,1715207469955,-500.0,0.00028493,5]
[326662816,1715207469965,-500.0,0.00028493,5]
[326662817,1715207469975,-1185.86,0.00028493,5]
[326662818,1715207469984,-3002.74,0.00028493,5]
[326662819,1715207469994,-534.57,0.00028493,5]
[326662820,1715207470004,-500.0,0.00028493,5]
[326662821,1715207470014,-500.0,0.00028493,5]
[326662822,1715207470023,-500.0,0.00028493,5]
[326662823,1715207470034,-500.0,0.00028493,5]
[326662824,1715207470043,-500.0,0.00028493,2]
[326662825,1715207470053,-500.0,0.00028493,5]
[326662826,1715207470065,-737.92,0.00028493,5]
[326662827,1715207470075,-642.37,0.00028493,5]
[326662828,1715207470085,-500.0,0.00028493,5]
[326662829,1715207470094,-1985.13,0.00028493,5]
[326662830,1715207470104,-375.0,0.00028493,5]
[326662831,1715207470115,-2792.76,0.00028493,5]
[326662832,1715207470125,-500.0,0.00028493,5]
[326662833,1715207470134,-500.0,0.00028493,5]
[326662834,1715207470143,-200.0,0.00028497,2]
[326662835,1715207470153,-500.0,0.00028497,2]
[326662836,1715207470163,-500.0,0.000285,120]
[326662837,1715207470172,-420.91953642,0.000285,2]
[326662838,1715207470181,-209.0,0.000285,2]
[326662839,1715207470191,-160.26399285,0.00028504,2]
[326662840,1715207470200,-399.98528346,0.00028542,2]
[326662841,1715207470211,-152.49923917,0.00028589,2]
[326662842,1715207470221,-269.97043528,0.00028589,2]
[326662843,1715207470230,-150.0,0.00028602,2]
[326662844,1715207470240,-150.0,0.00028608,2]
[326662845,1715207470249,-150.0,0.00028614,2]
[326662846,1715207470259,-150.0,0.00028623,2]
[326662847,1715207470269,-2259.43085999,0.00028627,2]
[326662848,1715207470278,-150.0,0.00028629,2]
[326662849,1715207470288,-150.0,0.00028638,2]
[326662850,1715207470298,-150.0,0.00028659,2]
[326662851,1715207470308,-150.0,0.00028681,2]
[326662852,1715207470318,-150.0,0.00028703,2]
[326662853,1715207470328,-200.0,0.00028728,2]
[326662854,1715207470338,-1000.0,0.00028728,10]
[326662855,1715207470348,-500.0,0.00028728,2]
[326662856,1715207470358,-200.0,0.00028728,2]
[326662857,1715207470370,-150.0,0.00028741,2]
[326662858,1715207470380,-157.050906,0.00028748,16]
[326662859,1715207470390,-150.0,0.00028752,2]
[326662860,1715207470401,-150.0,0.00028758,2]
[326662861,1715207470411,-150.0,0.00028763,2]
[326662862,1715207470421,-150.0,0.00028763,2]
[326662863,1715207470431,-150.0,0.00028767,2]
[326662864,1715207470440,-150.0,0.00028788,2]
[326662865,1715207470450,-150.0,0.00028794,2]
[326662866,1715207470459,-150.0,0.00028798,2]
[326662867,1715207470469,-272.56,0.000288,2]
[326662868,1715207470479,-150.0,0.00028805,2]
[326662869,1715207470489,-150.0,0.00028813,2]
[326662870,1715207470498,-150.0,0.00028815,2]
[326662871,1715207470510,-399.98528346,0.00028818,2]
[326662872,1715207470519,-774.55004833,0.00028823,2]
[326662873,1715207470529,-150.0,0.00028826,2]
[326662874,1715207470538,-150.0,0.00028838,2]
[326662875,1715207470548,-150.0,0.00028839,2]
[326662876,1715207470558,-150.0,0.0002884,2]
[326662877,1715207470568,-150.0,0.00028843,2]
[326662878,1715207470577,-150.0,0.00028849,2]
[326662879,1715207470587,-150.0,0.00028852,2]
[326662880,1715207470597,-150.0,0.00028865,2]
[326662881,1715207470606,-150.0,0.00028866,2]
[326662882,1715207470617,-150.0,0.00028867,2]
[326662883,1715207470627,-150.0,0.00028872,2]
[326662884,1715207470637,-269.97043528,0.00028873,2]
[326662885,1715207470646,-150.0,0.00028879,2]
[326662886,1715207470655,-152.49923917,0.00028893,2]
[326662887,1715207470666,-600.0,0.000289,10]
[326662888,1715207470676,-150.0,0.000289,6]
[326662889,1715207470687,-150.0,0.00028903,2]
[326662890,1715207470698,-150.0,0.00028915,2]
[326662891,1715207470707,-150.0,0.00028929,2]
[326662892,1715207470717,-150.0,0.00028932,2]
[326662893,1715207470727,-150.0,0.00028937,2]
[326662894,1715207470738,-150.0,0.00028943,2]
[326662895,1715207470747,-200.0,0.0002896,2]
[326662896,1715207470756,-500.0,0.0002896,2]
[326662897,1715207470766,-150.0,0.00028963,2]
[326662898,1715207470776,-150.0,0.00028989,2]
[326662899,1715207470786,-150.0,0.00028993,2]
[326662900,1715207470803,-49863.72127705,0.00029,2]
[326662901,1715207470812,-564.56776386,0.00029,2]
[326662902,1715207470822,-500.0,0.00029,120]
[326662903,1715207470831,-234.139883,0.00029,120]
[326662904,1715207470843,-150.0,0.00029,2]
[326662905,1715207470852,-150.0,0.00029003,2]
[326662906,1715207470863,-150.0,0.00029006,2]
[326662907,1715207470874,-150.0,0.00029011,2]
[326662908,1715207470884,-269.97043528,0.00029022,2]
[326662909,1715207470895,-150.0,0.00029034,2]
[326662910,1715207470905,-500.0,0.00029041,5]
[326662911,1715207470915,-500.0,0.00029041,5]
[326662912,1715207470924,-937.08,0.00029041,5]
[326662913,1715207470934,-500.0,0.00029041,5]
[326662914,1715207470943,-500.0,0.00029041,5]
[326662915,1715207470952,-1480.17,0.00029041,5]
[326662916,1715207470963,-500.0,0.00029041,5]
[326662917,1715207470972,-500.0,0.00029041,5]
[326662918,1715207470983,-1486.86,0.00029041,5]
[326662919,1715207470994,-500.0,0.00029041,5]
[326662920,1715207471003,-270.94,0.00029041,5]
[326662921,1715207471013,-500.0,0.00029041,5]
[326662922,1715207471022,-234.89,0.00029041,5]
[326662923,1715207471031,-500.0,0.00029041,5]
[326662924,1715207471041,-500.0,0.00029041,5]
[326662925,1715207471050,-500.0,0.00029041,5]
[326662926,1715207471061,-500.0,0.00029041,5]
[326662927,1715207471070,-500.0,0.00029041,5]
[326662928,1715207471080,-302.78,0.00029041,5]
[326662929,1715207471089,-500.0,0.00029041,5]
[326662930,1715207471098,-500.0,0.00029041,5]
[326662931,1715207471108,-221.45,0.00029041,5]
[326662932,1715207471119,-500.0,0.00029041,5]
[326662933,1715207471128,-500.0,0.00029041,5]
[326662934,1715207471137,-500.0,0.00029041,5]
[326662935,1715207471146,-500.0,0.00029041,5]
[326662936,1715207471155,-500.0,0.00029041,5]
[326662937,1715207471164,-359.51,0.00029041,5]
[326662938,1715207471174,-2597.35,0.00029041,5]
[326662939,1715207471184,-426.13,0.00029041,5]
[326662940,1715207471193,-500.0,0.00029041,2]
[326662941,1715207471202,-500.0,0.00029041,5]
[326662942,1715207471212,-500.0,0.00029041,2]
[326662943,1715207471221,-500.0,0.00029041,5]
[326662944,1715207471230,-1371.59,0.00029041,5]
[326662945,1715207471239,-500.0,0.00029041,5]
[326662946,1715207471248,-500.0,0.00029041,5]
[326662947,1715207471257,-349.59,0.00029041,5]
[326662948,1715207471267,-500.0,0.00029041,5]
[326662949,1715207471277,-500.0,0.00029041,5]
[326662950,1715207471286,-500.0,0.00029041,5]
[326662951,1715207471295,-1510.2,0.00029041,5]
[326662952,1715207471305,-500.0,0.00029041,5]
[326662953,1715207471314,-500.0,0.00029041,5]
[326662954,1715207471324,-500.0,0.00029041,5]
[326662955,1715207471333,-2799.55,0.00029041,5]
[326662956,1715207471343,-500.0,0.00029041,5]
[326662957,1715207471352,-1388.07,0.00029041,5]
[326662958,1715207471361,-500.0,0.00029041,5]
[326662959,1715207471371,-780.43,0.00029041,5]
[326662960,1715207471380,-500.0,0.00029041,5]
[326662961,1715207471390,-500.0,0.00029041,2]
[326662962,1715207471400,-2203.33,0.00029041,5]
[326662963,1715207471409,-500.0,0.00029041,5]
[326662964,1715207471419,-1213.06,0.00029041,5]
[326662965,1715207471428,-500.0,0.00029041,5]
[326662966,1715207471437,-500.0,0.00029041,5]
[326662967,1715207471446,-500.0,0.00029041,5]
[326662968,1715207471455,-1130.29,0.00029041,5]
[326662969,1715207471466,-333.82,0.00029041,5]
[326662970,1715207471476,-2068.76,0.00029041,5]
[326662971,1715207471486,-500.0,0.00029041,5]
[326662972,1715207471495,-500.0,0.00029041,5]